bitfinex/quotes_ETHUSD_20241204
["timestamp","ask_amount","ask_price","bid_price","bid_amount"]
[1733302164006,0.41905954,3708.6,3707.3,0.8125]
[1733302164332,0.65057752,3708.5,3707.9,2.69687]
[1733302164617,0.40040763,3708.7,3708.3,2.69659]
[1733302164927,0.25035224,3709.4,3709.0,2.69612]
[1733302165079,0.25030657,3709.3,3709.0,2.69612]
[1733302165279,0.25030657,3709.2,3709.0,2.69612]
[1733302165517,0.40051125,3709.6,3709.0,2.69609]
[1733302165719,0.65077973,3709.5,3709.4,2.69585]
[1733302165922,0.41902402,3710.2,3709.4,2.69585]
[1733302166078,0.90103298,3710.1,3709.4,2.69585]
[1733302166283,0.65071626,3710.0,3709.5,2.69576]
[1733302166576,0.25027548,3709.9,3709.7,2.69561]
[1733302166781,0.25027548,3709.8,3709.7,2.69561]
[1733302166990,2.50302059,3710.8,3709.7,2.69561]
[1733302167223,0.68652632,3710.7,3709.7,2.69561]
[1733302167533,1.61409042,3710.7,3709.7,2.69561]
[1733302167717,0.9275641,3710.6,3709.7,2.69561]
[1733302168031,0.56915569,3710.5,3709.7,2.69561]
[1733302168221,1.06986354,3710.4,3709.7,2.69561]
[1733302168421,0.90127632,3710.3,3709.7,2.69561]
[1733302168736,0.65092376,3710.2,3709.8,2.69554]
[1733302168933,0.65092376,3710.1,3709.8,2.69554]
[1733302169136,0.25035529,3710.0,3709.8,2.69554]
[1733302169441,0.25035529,3709.9,3709.8,2.69554]
[1733302169940,0.25035529,3709.9,3709.8,3.041874]
[1733302170171,0.25035256,3710.8,3709.8,0.346334]
[1733302170465,4.3617926,3711.5,3709.8,0.346334]
[1733302170466,0.25028708,3710.7,3710.1,2.6953]
[1733302170628,0.25035256,3711.3,3710.5,2.69499]
[1733302170829,0.65078081,3711.2,3710.5,2.69499]
[1733302171073,0.65078081,3711.1,3710.5,2.69499]
[1733302171245,0.25030031,3711.0,3710.6,2.69495]
[1733302171447,0.25030031,3710.9,3710.6,2.69495]
[1733302171646,0.25030031,3710.8,3710.6,2.69495]
[1733302171852,0.40048877,3711.1,3710.7,2.6949]
[1733302172032,0.25030999,3711.0,3710.4,2.69512]
[1733302172371,0.40031222,3711.6,3711.0,2.69465]
[1733302172535,0.65051718,3711.5,3711.0,2.69465]
[1733302172725,0.58584604,3712.1,3711.0,2.69465]
[1733302172726,0.25020496,3711.4,3711.0,2.69465]
[1733302172939,0.25020496,3711.3,3711.0,2.69465]
[1733302173140,0.40032759,3711.6,3711.0,2.69465]
[1733302173341,0.2500049,3711.5,3711.0,2.69465]
[1733302173544,0.2500049,3711.4,3711.0,2.69465]
[1733302173783,0.40032759,3711.9,3711.0,2.69465]
[1733302174074,0.65028201,3711.8,3711.0,2.69465]
[1733302174378,0.33445802,3711.9,3710.3,0.7739]
[1733302174536,0.24982519,3711.7,3710.9,2.69471]
[1733302174735,0.24982519,3711.6,3710.9,2.69471]
[1733302174938,0.24982519,3711.5,3710.5,3.23617956]
[1733302175162,0.3997203,3711.9,3711.0,2.69467]
[1733302175474,0.24995021,3712.1,3711.0,2.69467]
[1733302175475,0.24970267,3711.8,3711.0,2.69467]
[1733302175639,0.24970267,3711.7,3711.0,0.269467]
[1733302175836,0.3997203,3712.5,3711.8,2.69409]
[1733302176161,0.2498785,3712.4,3712.0,2.69394]
[1733302176347,0.2498785,3712.8,3712.1,2.69387]
[1733302176560,0.2498785,3713.1,3712.1,2.69387]
[1733302176861,0.2498785,3713.0,3712.1,2.69387]
[1733302177172,0.2498785,3712.9,3711.4,2.6944]
[1733302177375,0.24987884,3713.1,3711.9,2.69401]
[1733302177595,0.24948051,3713.0,3712.0,0.79453755]
[1733302177796,0.24948051,3713.4,3712.0,0.7676]
[1733302177998,0.24948051,3713.3,3712.3,2.69371]
[1733302178181,0.24948051,3713.2,3712.0,0.7676]
[1733302178407,0.49935935,3713.4,3712.3,2.69374]
[1733302178552,0.56870844,3713.3,3712.3,2.69374]
[1733302178757,0.24948051,3713.2,3712.3,2.69374]
[1733302179501,0.24948051,3713.2,3712.1,2.69387]
[1733302179701,0.24948051,3713.2,3712.2,2.6938]
[1733302180003,0.24948051,3713.1,3712.1,2.69389]
[1733302180176,0.24948051,3713.1,3712.0,0.7676]
[1733302180177,0.35116173,3713.1,3712.0,0.7676]
[1733302180491,0.24948051,3713.1,3712.0,3.46154]
[1733302181697,0.24948051,3713.1,3712.0,0.7676]
[1733302181998,2.69324,3713.0,3712.0,0.7676]
[1733302182171,0.24948051,3712.9,3712.0,0.7676]
[1733302182594,0.24948051,3713.1,3712.0,0.7676]
[1733302182820,0.24948051,3713.3,3712.1,0.02693617]
[1733302182959,0.24948051,3713.2,3712.0,0.7676]
[1733302183161,0.24948051,3713.1,3712.0,0.7676]
[1733302183398,2.69319,3713.1,3712.0,0.7676]
[1733302183708,0.51879951,3713.0,3712.0,0.7676]
[1733302184485,3.21203951,3713.0,3712.0,0.7676]
[1733302184801,0.24948051,3712.9,3712.0,0.7676]
[1733302185877,0.51879951,3713.0,3712.0,0.7676]
[1733302186080,0.24948051,3713.2,3712.1,2.69387]
[1733302186311,0.24948051,3713.1,3712.1,2.69387]
[1733302186466,0.24948051,3713.0,3712.1,2.69387]
[1733302186667,0.24948051,3713.2,3712.1,2.69387]
[1733302186882,2.94269051,3713.1,3712.0,0.7676]
[1733302187062,0.54374956,3713.0,3712.0,0.7676]
[1733302187262,2.69329,3713.0,3712.0,0.7676]
[1733302187523,0.24948051,3712.9,3712.0,0.7676]
[1733302187684,2.69311,3713.2,3712.1,2.69388]
[1733302187890,0.24856892,3713.1,3712.1,2.69388]
[1733302188094,2.69359,3712.6,3711.6,0.7645]
[1733302188269,0.51792792,3712.5,3711.6,0.7645]
[1733302188614,2.86159965,3713.2,3711.8,2.69408]
[1733302188615,0.24856892,3712.8,3711.8,2.69408]
[1733302188839,0.24856892,3712.7,3711.6,0.7645]
[1733302189017,0.24856892,3713.2,3712.1,2.69386]
[1733302189216,0.39771028,3713.5,3711.6,0.7645]
[1733302189217,0.24856892,3713.1,3712.3,2.69368]
[1733302189382,0.24856892,3713.0,3712.3,2.69368]
[1733302189595,0.24856892,3712.9,3712.3,2.69368]
[1733302189768,0.24856892,3713.2,3712.3,2.69368]
[1733302189969,0.24856892,3713.1,3712.3,2.69368]
[1733302190305,0.24856892,3713.0,3712.3,2.69368]
[1733302190508,0.24856892,3712.9,3712.3,2.69368]
[1733302190706,0.24856892,3712.8,3712.4,2.69363]
[1733302190885,0.24856892,3713.2,3712.6,2.69351]
[1733302191084,0.24856892,3713.1,3712.7,2.69343]
[1733302191270,0.24856892,3713.0,3712.8,2.69335]
[1733302191469,0.39771028,3713.6,3712.8,2.69335]
[1733302191670,0.64676077,3713.5,3712.8,2.69335]
[1733302191977,0.64676077,3713.4,3712.6,2.6935]
[1733302192178,0.24905049,3713.3,3712.7,0.3489]
[1733302192412,2.6929,3713.5,3712.4,3.48915]
[1733302192413,0.64676077,3713.2,3712.4,3.48915]
[1733302192565,0.64676077,3713.1,3712.4,0.7955]
[1733302192773,0.64676077,3713.0,3712.4,0.7955]
[1733302193015,0.64799091,3712.9,3712.8,2.69338]
[1733302193171,0.24905049,3712.9,3712.8,2.69338]
[1733302193368,0.64799091,3712.9,3712.8,2.962718]
[1733302194312,0.6496714,3712.9,3712.8,2.962718]
[1733302195287,0.89958865,3712.9,3712.8,2.962718]
[1733302195491,1.06803079,3712.9,3712.8,0.269338]
[1733302195805,0.6496714,3712.9,3712.8,0.269338]
[1733302196007,0.89972714,3712.9,3712.8,0.269338]
[1733302196208,1.06816124,3712.9,3712.8,0.269338]
[1733302197790,1.06909927,3712.9,3712.8,0.269338]
[1733302198423,1.06909927,3712.9,3712.7,3.0]
[1733302198638,1.06909927,3712.8,3712.4,0.7955]
[1733302198802,1.06909927,3712.7,3712.4,0.7955]
[1733302199007,1.47023655,3712.6,3712.4,0.7955]
[1733302199217,1.06909927,3712.5,3712.4,0.7955]
[1733302199425,1.4706445,3712.5,3712.4,0.7955]
[1733302199623,1.4706445,3712.5,3712.4,1.444438]
[1733302199937,1.06909927,3712.5,3712.4,6.48917]
[1733302200315,1.47090392,3712.5,3712.4,0.7955]
[1733302200642,1.47090392,3712.5,3712.4,3.7955]
[1733302200840,1.47194386,3712.5,3712.4,3.7955]
[1733302201046,1.22083159,3712.5,3711.9,2.69397]
[1733302201340,0.41849319,3712.3,3711.9,0.344497]
[1733302201513,1.89040373,3712.2,3711.9,3.0]
[1733302201712,1.47191054,3712.1,3711.9,5.69402]
[1733302201914,1.47191054,3712.0,3711.9,5.69402]
[1733302202116,1.47191054,3712.0,3711.7,0.751]
[1733302202329,1.47226693,3711.9,3711.7,0.751]
[1733302202539,0.41849319,3712.0,3711.9,2.69403]
[1733302202851,1.47525741,3712.0,3711.9,5.69403]
[1733302203207,1.47525741,3712.0,3711.9,5.72096759]
[1733302203544,1.47533419,3712.0,3711.9,5.69403]
[1733302206408,1.47533419,3712.0,3711.8,0.43020877]
[1733302206625,2.69325,3713.0,3712.0,3.0]
[1733302206986,0.82270669,3712.9,3712.2,3.0]
[1733302207108,1.22532008,3712.8,3712.2,5.69379]
[1733302207302,5.0,3713.0,3712.2,5.69379]
[1733302207303,1.47695344,3712.7,3712.2,5.69379]
[1733302207520,1.47695344,3712.6,3712.2,5.69379]
[1733302207745,1.47695344,3712.5,3712.0,2.6939]
[1733302207947,1.47695344,3712.4,3712.1,3.0]
[1733302208150,1.47695344,3712.4,3711.1,2.69455]
[1733302208151,2.69391,3712.1,3711.0,3.52628]
[1733302208379,0.41933877,3711.5,3711.0,0.8316]
[1733302208591,0.41933877,3711.3,3711.0,2.69468]
[1733302208736,1.47695344,3711.2,3711.0,0.32325428]
[1733302208933,1.07434005,3711.1,3711.0,0.32325428]
[1733302209170,1.07434005,3711.1,3710.8,2.69482]
[1733302209384,0.90586941,3711.0,3710.9,2.69475]
[1733302209546,0.90586941,3711.0,3710.9,5.69475]
[1733302210181,0.90531296,3711.0,3710.7,2.6949]
[1733302210375,0.25141523,3710.9,3710.8,3.0]
[1733302210594,0.25141523,3710.9,3710.8,3.26432]
[1733302210739,0.25141523,3710.9,3710.8,5.69483]
[1733302211103,0.25141523,3710.9,3710.8,7.06243]
[1733302211245,0.41902538,3711.8,3711.3,2.69446]
[1733302211576,1.47525352,3711.7,3711.0,0.02693961]
[1733302211780,0.90467722,3711.6,3711.2,0.55]
[1733302211978,0.41902538,3712.1,3711.6,2.69421]
[1733302212179,1.30724097,3712.0,3711.6,2.69421]
[1733302212486,3.0,3712.9,3711.6,2.69421]
[1733302212487,1.30724097,3711.9,3711.6,2.69421]
[1733302212648,3.0,3712.9,3711.6,2.69421]
[1733302212649,0.90500739,3711.8,3711.6,2.69421]
[1733302212855,0.50278499,3711.7,3711.6,2.69421]
[1733302213387,0.50278499,3711.7,3711.4,2.69439]
[1733302213543,0.50278499,3711.7,3711.3,0.13741396]
[1733302213544,0.251389,3711.6,3711.3,0.13741396]
[1733302213742,0.50281027,3711.5,3711.3,0.13741396]
[1733302213977,0.251389,3711.4,3711.1,0.7972]
[1733302214147,0.50278245,3711.3,3711.1,3.0]
[1733302214354,0.251389,3711.2,3711.1,3.0]
[1733302214864,0.251389,3711.2,3710.8,3.44913]
[1733302215070,0.251389,3711.1,3710.8,3.44913]
[1733302215306,2.69411,3711.8,3710.6,2.69494]
[1733302215511,1.30687384,3711.7,3710.5,0.7686]
[1733302215669,1.30687384,3711.6,3710.5,3.46358]
[1733302215872,1.30687384,3711.5,3710.7,2.69488]
[1733302216210,1.30687384,3711.4,3710.7,2.69488]
[1733302216381,0.90474218,3711.3,3710.7,3.041228]
[1733302216716,0.50263293,3711.2,3710.7,3.041228]
[1733302216899,0.50266451,3711.1,3710.7,3.041228]
[1733302217061,0.25133632,3711.0,3710.7,3.041228]
[1733302217265,0.40212678,3711.6,3710.7,3.041228]
[1733302217485,1.30672489,3711.5,3710.7,3.041228]
[1733302217685,1.30672489,3711.4,3710.7,3.041228]
[1733302217862,0.90459811,3711.3,3710.8,2.69477]
[1733302218065,0.50255422,3711.2,3710.7,0.346348]
[1733302218303,0.25127679,3711.1,3710.5,0.7686]
[1733302218504,0.80392689,3711.7,3710.5,0.7686]
[1733302218712,2.51743151,3711.9,3710.5,0.7686]
[1733302218713,1.30633739,3711.6,3710.5,0.7686]
[1733302219016,1.30633739,3711.5,3710.5,0.7686]
[1733302219206,1.30633739,3711.4,3710.5,0.7686]
[1733302219406,0.50241454,3711.3,3710.5,0.7686]
[1733302219607,0.50241454,3711.2,3710.5,0.7686]
[1733302219779,0.25120386,3711.1,3710.5,0.7686]
[1733302219984,0.40183827,3711.4,3710.5,0.7686]
[1733302220191,1.39644139,3711.8,3710.5,0.7686]
[1733302220365,0.25111711,3711.3,3710.5,0.7686]
[1733302220570,0.25111711,3711.2,3710.5,0.7686]
[1733302220812,0.4017863,3711.5,3710.5,0.7686]
[1733302221117,0.9039668,3711.4,3710.5,0.7686]
[1733302221313,0.5021805,3711.3,3710.5,0.7686]
[1733302221607,0.25109021,3711.2,3710.5,0.7686]
[1733302221813,0.40170614,3711.5,3710.3,0.52989843]
[1733302222117,0.90382031,3711.4,3710.3,0.18172422]
[1733302222269,0.50211417,3711.3,3710.3,0.18172422]
[1733302222469,0.2510596,3711.2,3710.3,0.52657973]
[1733302222677,2.69426,3711.6,3710.3,0.52657973]
[1733302222913,0.50207419,3711.5,3710.3,0.52657973]
[1733302223109,0.50207419,3711.4,3710.3,0.52657973]
[1733302223401,0.25103575,3711.5,3710.3,0.52657973]
[1733302223611,0.25103068,3711.4,3710.3,0.97828434]
[1733302223841,0.38681064,3711.5,3710.3,0.97828434]
[1733302224027,2.69435,3711.5,3710.3,0.52657973]
[1733302224212,0.2510144,3711.4,3710.3,0.52657973]
[1733302224437,2.69455,3711.2,3710.1,0.8327]
[1733302224601,2.69425,3711.6,3710.1,1.3590101]
[1733302224602,2.69451,3711.3,3710.1,1.3590101]
[1733302224802,0.25099371,3711.2,3710.1,1.3590101]
[1733302225118,0.50198679,3711.6,3710.4,0.7902]
[1733302225316,0.25099371,3711.5,3710.5,0.02694518]
[1733302225633,0.25099371,3711.4,3710.4,0.7902]
[1733302225812,0.25099371,3711.3,3710.4,0.7902]
[1733302226014,0.25099371,3711.2,3710.4,0.7902]
[1733302226201,0.25099371,3711.1,3710.4,0.7902]
[1733302226403,2.69451,3711.3,3710.4,0.7902]
[1733302226404,0.25099371,3711.0,3710.4,0.7902]
[1733302226604,0.25099371,3710.9,3710.4,0.7902]
[1733302226903,2.9457163,3711.2,3710.4,0.7902]
[1733302226904,2.69456,3711.2,3710.4,0.7902]
[1733302227141,0.65306213,3711.1,3710.4,0.7902]
[1733302227312,0.25117774,3711.0,3710.4,0.7902]
[1733302227512,0.25117774,3710.9,3710.4,0.7902]
[1733302227715,0.25117774,3710.8,3709.5,0.7716]
[1733302227900,0.25117774,3710.7,3709.6,0.02695042]
[1733302228244,0.6533423,3710.6,3709.7,3.51463]
[1733302228397,0.25117774,3710.5,3709.7,0.819]
[1733302228602,2.69452,3711.3,3709.7,0.819]
[1733302228603,0.25130625,3710.4,3709.7,0.819]
[1733302228909,2.69491,3710.7,3709.8,0.40601233]
[1733302229108,0.25130172,3710.6,3709.8,0.40601233]
[1733302229309,0.25130172,3710.5,3709.8,0.40601233]
[1733302229503,0.25130172,3710.4,3709.8,0.40601233]
[1733302229809,2.69483,3710.8,3709.8,0.40601233]
[1733302230012,0.25131262,3710.7,3709.9,0.44659857]
[1733302230207,0.25131262,3710.6,3709.9,0.44659857]
[1733302230437,0.25137731,3710.5,3709.9,0.44659857]
[1733302230640,0.57066254,3711.1,3709.9,0.44659857]
[1733302230985,0.90482625,3711.0,3709.9,0.44659857]
[1733302231285,0.16856438,3711.1,3710.0,0.39612086]
[1733302231286,2.6949,3710.8,3710.0,0.39612086]
[1733302231585,0.25134103,3710.7,3710.0,0.39612086]
[1733302231737,0.25134103,3710.6,3710.0,0.39612086]
[1733302232079,0.25134103,3710.5,3710.0,0.39612086]
[1733302232274,0.25134103,3710.4,3710.0,0.39612086]
[1733302232577,2.6949,3710.8,3710.0,0.39612086]
[1733302232766,0.65328365,3710.7,3710.0,0.39612086]
[1733302232973,0.25126294,3710.6,3710.0,0.39612086]
[1733302233174,0.25126294,3710.5,3710.0,0.39612086]
[1733302233379,2.69492,3710.7,3710.0,0.39612086]
[1733302233688,0.2513057,3710.6,3710.0,0.39612086]
[1733302233887,2.69489,3710.8,3710.1,0.30916609]
[1733302234189,2.94620456,3710.7,3710.1,0.30916609]
[1733302234346,2.94620456,3710.7,3709.7,0.819]
[1733302234347,0.25129456,3710.6,3709.7,3.51458]
[1733302234554,0.25129456,3710.5,3709.7,3.51458]
[1733302234863,0.25128886,3710.4,3709.7,3.51458]
[1733302235066,2.69505,3710.5,3709.7,0.819]
[1733302235255,0.25127204,3710.4,3709.7,0.819]
[1733302235450,0.25127204,3710.3,3709.7,0.819]
[1733302235647,0.57064692,3711.0,3709.7,0.819]
[1733302235848,1.74174872,3710.9,3709.3,0.796]
[1733302236051,2.69557,3709.8,3708.8,0.796]
[1733302236296,2.69557,3709.8,3708.9,0.54787057]
[1733302236452,0.25126555,3709.7,3708.9,0.54787057]
[1733302236654,2.69557,3709.8,3708.9,0.54787057]
[1733302236995,0.25123642,3709.7,3709.0,0.40401406]
[1733302237287,2.69557,3709.8,3709.0,0.40401406]
[1733302237585,0.25118758,3709.7,3709.0,0.40401406]
[1733302237794,2.69557,3709.8,3709.0,0.40401406]
[1733302238043,0.25118627,3709.7,3709.0,0.40401406]
[1733302238216,2.69566,3709.7,3708.8,0.796]
[1733302238592,0.25112132,3709.6,3708.8,0.796]
[1733302238829,2.69566,3709.7,3708.8,0.796]
[1733302239028,0.25114443,3709.6,3708.8,1.33615712]
[1733302239197,2.69566,3709.7,3708.8,1.33615712]
[1733302239530,2.6955,3709.9,3708.9,0.40324871]
[1733302239733,0.25107722,3709.8,3708.9,2.6962]
[1733302239889,0.25107722,3709.7,3708.9,2.6962]
[1733302240090,2.6955,3709.9,3708.9,2.6962]
[1733302240323,0.25119675,3709.8,3708.9,2.6962]
[1733302240531,0.40182845,3710.2,3708.8,1.33615712]
[1733302240734,1.21374065,3710.1,3708.8,1.33615712]
[1733302240891,0.6528977,3710.0,3708.8,1.33615712]
[1733302241086,0.25112682,3709.9,3708.8,1.33615712]
[1733302241320,0.25112682,3709.8,3708.9,0.83925693]
[1733302241502,2.69556,3709.8,3708.9,0.8123]
[1733302241720,2.69556,3709.8,3709.0,0.13524571]
[1733302242314,2.69527,3710.2,3709.0,0.13524571]
[1733302242517,2.69523,3710.3,3709.0,0.13524571]
[1733302242518,2.69542,3710.0,3709.0,0.13524571]
[1733302242747,0.25104148,3709.9,3709.0,2.83131571]
[1733302242932,0.25104148,3709.8,3709.0,2.83131571]
[1733302243136,2.69542,3710.0,3709.1,0.41837728]
[1733302243452,0.25109038,3709.9,3709.1,0.41837728]
[1733302243622,2.69542,3710.0,3709.1,0.41837728]
[1733302243811,0.2511672,3709.9,3709.1,3.11443728]
[1733302244012,2.6954,3710.1,3709.1,3.11443728]
[1733302244207,0.25119122,3710.0,3709.1,3.11443728]
[1733302244434,0.25119122,3709.9,3709.2,0.4061983]
[1733302244650,2.6954,3710.1,3709.2,0.4061983]
[1733302244817,0.25122172,3710.0,3709.2,0.4061983]
[1733302245150,0.25122172,3709.9,3709.2,0.43315523]
[1733302245330,2.6954,3710.1,3709.2,0.4061983]
[1733302245532,0.25122703,3710.0,3709.2,0.4061983]
[1733302245703,0.25122703,3709.9,3709.2,0.4061983]
[1733302245911,2.69536,3710.1,3709.3,0.3237504]
[1733302246151,2.69536,3710.1,3709.0,2.83137571]
[1733302246152,0.25119665,3710.0,3709.0,2.83137571]
[1733302246353,0.25119665,3709.9,3709.0,2.83137571]
[1733302246654,0.25119665,3709.8,3709.0,2.83137571]
[1733302246820,0.25119665,3709.7,3709.0,2.83137571]
[1733302247029,0.16860198,3710.3,3709.0,0.13524571]
[1733302247226,2.69544,3710.0,3709.0,0.13524571]
[1733302247442,3.02185866,3710.2,3709.1,2.69606]
[1733302247620,3.34841955,3710.1,3709.2,0.02695689]
[1733302247823,0.25119679,3710.0,3709.1,2.69606]
[1733302248148,0.25119679,3709.9,3709.2,2.69599]
[1733302248464,0.40192452,3710.2,3709.4,0.7888]
[1733302248768,0.25125007,3710.7,3710.0,0.7698]
[1733302249049,0.65324223,3710.6,3710.0,0.7698]
[1733302249274,0.25124701,3710.5,3710.0,0.7698]
[1733302249572,0.25124701,3710.4,3710.0,0.7698]
[1733302249731,0.57059727,3711.2,3710.0,0.7698]
[1733302249931,2.14353555,3711.1,3710.0,0.7698]
[1733302250127,2.69497,3710.7,3710.0,0.7698]
[1733302250329,2.69512,3710.5,3709.4,3.48182]
[1733302250572,0.50255657,3710.4,3709.5,2.69576]
[1733302250779,0.40199004,3710.8,3709.4,0.786]
[1733302250780,2.94650921,3710.3,3709.4,0.786]
[1733302250978,2.69545,3710.0,3709.4,0.786]
[1733302251179,2.69541,3710.1,3709.1,0.7703]
[1733302251479,0.65332735,3710.0,3709.1,0.7703]
[1733302251661,0.50256043,3709.9,3709.1,0.7703]
[1733302251865,0.2512877,3709.8,3709.1,0.7703]
[1733302252036,0.2512877,3709.7,3709.1,1.1704876]
[1733302252231,2.98991092,3710.3,3709.2,2.69599]
[1733302252432,0.90451355,3710.2,3709.3,0.8102]
[1733302252631,0.25125356,3710.1,3709.3,0.8102]
[1733302252910,0.57065658,3710.8,3709.8,0.8102]
[1733302253186,0.9045924,3710.7,3709.9,0.02695103]
[1733302253474,0.25127549,3710.6,3710.1,0.8047]
[1733302253682,2.69454,3711.2,3710.1,0.8047]
[1733302253966,0.65347079,3711.1,3710.1,0.8047]
[1733302254170,0.65347079,3711.0,3710.1,0.8047]
[1733302254372,2.69499,3710.6,3709.7,0.8254]
[1733302254535,0.50267998,3710.5,3709.7,0.8254]
[1733302254730,0.25133492,3710.4,3709.7,0.8254]
[1733302255079,0.25133492,3710.3,3709.7,1.177507]
[1733302255243,0.65351964,3710.7,3709.7,3.873137]
[1733302255433,0.90498078,3710.6,3709.7,3.873137]
[1733302255634,0.90498078,3710.5,3709.7,3.873137]
[1733302255846,0.25146114,3710.4,3709.7,1.177507]
[1733302256072,0.25146114,3710.3,3709.7,3.52097]
[1733302256374,0.25146114,3710.2,3709.7,3.52097]
[1733302256670,0.65391298,3710.6,3709.7,3.52097]
[1733302256847,0.90543725,3710.5,3709.7,3.52097]
[1733302257053,0.90547958,3710.4,3709.7,3.52097]
[1733302257258,0.25152427,3710.3,3709.8,0.352097]
[1733302257461,0.25162153,3710.2,3709.8,0.352097]
[1733302257754,0.65427017,3710.7,3709.9,2.69548]
[1733302257954,0.90593934,3710.6,3709.9,2.69548]
[1733302258144,0.90593934,3710.5,3709.9,2.69548]
[1733302258346,2.69475,3711.0,3709.9,2.69548]
[1733302258347,0.25165594,3710.4,3710.0,0.3872977]
[1733302258550,0.25165594,3710.3,3710.0,0.3872977]
[1733302258731,0.25165594,3710.2,3710.0,0.3872977]
[1733302258969,1.2255075,3710.8,3710.0,0.3872977]
[1733302259137,0.90595305,3710.7,3710.0,0.3872977]
[1733302259473,0.90595305,3710.6,3709.7,3.52102]
[1733302259680,0.90595305,3710.5,3709.7,0.8254]
[1733302259975,0.90595305,3710.4,3709.7,0.8254]
[1733302260180,2.69505,3710.5,3709.4,0.8034]
[1733302260181,0.90595305,3710.3,3709.4,0.8034]
[1733302260348,0.90595305,3710.2,3709.4,0.8034]
[1733302260674,0.90594124,3710.1,3709.5,0.34993]
[1733302260839,2.69558,3709.8,3709.1,0.8034]
[1733302261043,0.50327661,3709.7,3709.1,0.8034]
[1733302261364,0.25165635,3709.6,3708.8,0.7861]
[1733302261537,0.25165635,3709.5,3708.8,0.7861]
[1733302261737,2.94756635,3709.4,3708.4,2.69656]
[1733302262040,0.25165635,3709.3,3708.6,0.7619]
[1733302262274,0.25165635,3709.2,3708.6,0.7619]
[1733302262471,2.69578,3709.5,3708.6,0.7619]
[1733302262679,0.90562311,3709.4,3708.6,0.7619]
[1733302262973,2.69578,3709.5,3708.6,0.7619]
[1733302263180,0.90562121,3709.4,3708.7,0.42801552]
[1733302263379,0.25156264,3709.3,3708.7,0.42801552]
[1733302263673,0.25156264,3709.2,3708.6,0.7619]
[1733302263976,0.2514812,3709.1,3708.6,0.7619]
[1733302264281,0.65378046,3709.4,3708.6,0.7619]
[1733302264484,0.25144912,3709.3,3708.7,2.69635]
[1733302264643,3.09801641,3709.7,3708.7,2.69635]
[1733302264978,0.9052835,3709.6,3708.8,0.02695951]
[1733302265161,0.25147143,3709.5,3708.8,0.02695951]
[1733302265372,0.25147143,3709.4,3708.8,0.02695951]
[1733302265536,0.25147143,3709.3,3708.8,0.40244606]
[1733302265736,0.65375962,3709.6,3708.8,0.37548655]
[1733302265941,0.90517091,3709.5,3708.8,0.37548655]
[1733302266247,0.25143076,3709.4,3708.8,0.40244606]
[1733302266448,0.40213527,3709.7,3708.8,0.40244606]
[1733302266668,1.07337593,3709.6,3708.8,0.40244606]
[1733302266853,0.90476089,3709.5,3708.8,0.37548655]
[1733302267052,0.65343798,3709.4,3708.8,0.37548655]
[1733302267257,0.65343798,3709.3,3708.8,0.37548655]
[1733302267566,0.2513223,3709.2,3708.9,0.38337166]
[1733302267766,0.2513223,3709.1,3708.6,0.7619]
[1733302268082,2.69556,3709.8,3708.8,2.69626]
[1733302268257,1.07311592,3709.7,3708.8,2.69626]
[1733302268442,1.07311592,3709.6,3708.8,2.69626]
[1733302268638,0.65324832,3709.5,3708.8,2.69626]
[1733302268878,0.65324832,3709.4,3708.8,3.0690416]
[1733302269062,0.25124935,3709.3,3708.8,0.3727816]
[1733302269268,0.25124935,3709.2,3708.6,0.7619]
[1733302269473,0.41983848,3709.9,3709.1,0.7842]
[1733302269787,1.12486428,3710.4,3708.7,0.55]
[1733302269788,0.65323851,3709.8,3709.7,0.7842]
[1733302270001,0.25125885,3709.8,3709.7,0.7842]
[1733302271081,0.25125885,3709.8,3709.1,0.55]
[1733302271248,0.25125885,3709.7,3709.4,2.69579]
[1733302271445,0.41983164,3710.2,3709.4,2.69579]
[1733302271647,0.65318194,3710.1,3709.4,2.69579]
[1733302271860,0.65318194,3710.0,3709.4,2.69579]
[1733302272076,0.65318326,3709.9,3709.4,2.69579]
[1733302272397,0.25122382,3709.8,3709.6,0.8125]
[1733302272692,0.16857926,3710.5,3709.6,0.8125]
[1733302272883,0.65321106,3710.4,3709.9,2.69548]
[1733302273050,0.25123502,3710.3,3709.9,2.69548]
[1733302273393,0.25123502,3710.2,3709.9,2.69548]
[1733302273597,0.2512174,3710.1,3709.9,3.046278]
[1733302273891,0.41978274,3710.8,3710.0,2.69541]
[1733302274184,0.40211966,3711.0,3710.0,2.69541]
[1733302274185,0.90439489,3710.7,3710.0,2.69541]
[1733302274395,0.65317741,3710.6,3709.9,0.37774834]
[1733302274552,0.41974654,3711.0,3710.1,0.7576]
[1733302274886,0.25121803,3710.9,3710.7,0.7576]
[1733302275054,0.16854019,3711.5,3710.7,0.78454588]
[1733302275253,0.90411369,3711.4,3710.7,3.47944588]
[1733302275449,0.65297012,3711.3,3710.8,0.02694538]
[1733302275749,0.25114235,3711.2,3710.7,0.7576]
[1733302275958,0.25114235,3711.1,3710.7,0.7576]
[1733302276176,0.25114235,3711.0,3710.7,0.7576]
[1733302276385,3.34707496,3711.5,3710.7,0.7576]
[1733302276547,0.90379148,3711.4,3710.7,0.7576]
[1733302276896,0.65273948,3711.3,3710.7,0.7576]
[1733302277191,0.25104942,3711.2,3710.7,0.7576]
[1733302277375,0.25104942,3711.1,3710.7,0.7576]
[1733302277551,0.65253339,3711.6,3710.7,3.45244]
[1733302277893,0.65254583,3711.5,3710.8,0.345244]
[1733302278188,0.25098093,3711.4,3710.7,0.7576]
[1733302278388,0.25098093,3711.3,3710.7,0.7576]
[1733302278688,0.25089595,3711.2,3710.7,0.7576]
[1733302278854,0.40211966,3711.9,3710.7,0.7576]
[1733302278855,0.40143138,3711.5,3710.8,0.02694544]
[1733302279050,0.25089367,3711.4,3710.8,0.02694544]
[1733302279292,0.65232502,3711.8,3710.8,0.02694544]
[1733302279293,0.25089367,3711.3,3710.8,0.34794454]
[1733302279501,0.40143138,3711.6,3710.8,0.34794454]
[1733302279786,0.25083123,3711.5,3710.7,3.4525]
[1733302279992,0.25083123,3711.4,3710.7,0.7576]
[1733302280210,0.25083123,3711.3,3710.7,0.7576]
[1733302280353,2.69434,3711.5,3710.7,0.7576]
[1733302280571,2.94517124,3711.4,3710.4,0.44629952]
[1733302280765,0.25076124,3711.3,3710.4,0.45009108]
[1733302281000,2.69441,3711.4,3710.4,0.45009108]
[1733302281001,0.25076124,3711.2,3710.4,0.45009108]